bitfinex-derivatives/quotes_SOLF0:USTF0_20240907
["timestamp","ask_amount","ask_price","bid_price","bid_amount"]
[1725675105090,8.10463243,124.9,124.87,9.85]
[1725675105790,4.0043,124.9,124.88,9.85]
[1725675107190,70.36799031,124.94,124.8,2.7974]
[1725675107191,35.06269031,124.94,124.89,9.85]
[1725675107392,35.06269031,124.94,124.93,9.85]
[1725675107686,16.93367057,124.94,124.93,9.85]
[1725675108090,53.94795874,125.0,124.93,9.85]
[1725675108294,1.15886945,124.99,124.93,9.85]
[1725675108492,3.93352558,124.98,124.93,9.85]
[1725675108693,1.15886945,124.97,124.93,9.85]
[1725675109091,11.1817,125.0,124.93,9.85]
[1725675109291,4.0018,124.98,124.93,9.85]
[1725675109590,3.97116697,124.97,124.93,9.85]
[1725675111395,3.97116697,124.97,124.93,13.8531]
[1725675112997,7.97306697,124.97,124.93,13.8531]
[1725675118800,4.0023,124.96,124.92,4.0034]
[1725675118995,4.0023,124.96,124.93,9.85]
[1725675123004,4.0023,124.96,124.93,13.8532]
[1725675126799,4.0023,124.96,124.93,9.85]
[1725675128203,4.07815114,124.97,124.91,4.0037]
[1725675128405,24.07,124.98,124.92,9.85]
[1725675128605,1.15865693,124.97,124.92,9.85]
[1725675128800,4.0024,124.96,124.92,13.8535]
[1725675129603,8.00648293,124.96,124.92,13.8535]
[1725675132003,4.0026,124.95,124.92,9.85]
[1725675135008,4.04524843,124.97,124.9,4.0193]
[1725675135214,1.15859021,124.96,124.92,9.85]
[1725675135511,1.15859021,124.95,124.92,9.85]
[1725675135711,4.0025,124.96,124.92,9.85]
[1725675136309,4.0025,124.96,124.91,4.0036]
[1725675136504,4.0025,124.96,124.93,9.85]
[1725675138809,4.0026,124.95,124.93,9.85]
[1725675145518,28.02995916,124.97,124.9,1.3736]
[1725675145816,24.07,124.97,124.9,11.2236]
[1725675146012,25.4068,124.97,124.9,11.2236]
[1725675146213,29.43202441,124.97,124.9,11.2236]
[1725675146717,4.0034,124.93,124.9,11.2236]
[1725675153827,33.92,124.94,124.82,2.7489]
[1725675154025,33.92,124.94,124.87,9.85]
[1725675154223,4.0043,124.9,124.87,9.85]
[1725675154933,4.0043,124.9,124.88,9.85]
[1725675155526,4.0045,124.89,124.88,9.85]
[1725675155725,24.07,124.92,124.86,9.85]
[1725675156729,24.07,124.92,124.83,1.3994]
[1725675156925,33.92,124.91,124.85,9.85]
[1725675157229,4.005,124.88,124.85,9.85]
[1725675158632,4.0052,124.87,124.84,9.85]
[1725675158832,3.988621,124.9,124.84,9.85]
[1725675158833,35.2625,124.9,124.84,9.85]
[1725675159039,39.31161535,124.9,124.84,9.85]
[1725675160431,4.0055,124.86,124.84,9.85]
[1725675161636,4.0053,124.87,124.84,9.85]
[1725675162738,4.0055,124.86,124.84,9.85]
[1725675163228,4.0055,124.86,124.83,1.3994]
[1725675163435,4.0055,124.86,124.83,11.2494]
[1725675164137,5.39161535,124.9,124.85,9.85]
[1725675164340,4.04911535,124.9,124.85,9.85]
[1725675164543,11.2331,124.92,124.85,9.85]
[1725675165742,4.0047,124.89,124.85,9.85]
[1725675167547,4.0048,124.88,124.85,9.85]
[1725675170645,4.03461544,124.9,124.85,13.8557]
[1725675170849,4.0045,124.89,124.85,13.8557]
[1725675171146,4.0045,124.89,124.87,9.85]
[1725675171345,4.0045,124.89,124.85,4.0057]
[1725675171548,4.0045,124.89,124.86,9.85]
[1725675171938,3.93965975,124.9,124.86,9.85]
[1725675172251,1.3831,124.92,124.86,9.85]
[1725675172651,4.0047,124.89,124.86,9.85]
[1725675176155,4.0049,124.88,124.86,9.85]
[1725675181362,13.86626411,124.9,124.83,11.2494]
[1725675181555,9.85,124.9,124.83,11.2494]
[1725675181753,4.0053,124.87,124.83,15.2556]
[1725675182155,4.08637346,124.89,124.83,11.2494]
[1725675182457,4.005,124.88,124.84,4.006]
[1725675183657,4.005,124.88,124.83,11.2494]
[1725675184160,4.005,124.88,124.84,4.006]
[1725675185456,4.005,124.88,124.85,13.8557]
[1725675188253,4.0045,124.89,124.86,13.8554]
[1725675188451,4.0045,124.89,124.86,9.85]
[1725675189360,4.0045,124.89,124.85,4.0056]
[1725675189554,4.0045,124.89,124.85,13.8556]
[1725675192659,4.06081416,124.9,124.83,1.3994]
[1725675192864,33.92,124.91,124.82,1.3749]
[1725675192865,9.85,124.87,124.82,1.3749]
[1725675193053,9.85,124.87,124.8,9.85]
[1725675193458,4.0058,124.85,124.81,4.007]
[1725675196362,4.0062,124.84,124.81,4.007]
[1725675199261,5.42265339,124.9,124.83,9.85]
[1725675199460,4.08565339,124.9,124.85,9.85]
[1725675199666,28.1064,124.94,124.87,13.8551]
[1725675199864,11.00813933,124.93,124.87,13.8551]
[1725675200059,9.85,124.93,124.87,13.8551]
[1725675200466,4.0041,124.91,124.87,13.8551]
[1725675201471,9.85,124.92,124.86,4.0053]
[1725675201771,9.85,124.92,124.85,12.6605]
[1725675202173,4.0044,124.9,124.85,16.666]
[1725675205971,4.0044,124.9,124.86,4.0054]
[1725675210674,4.0045,124.89,124.86,4.0054]
[1725675212174,2.6122,124.94,124.87,4.005]
[1725675212371,9.85,124.93,124.85,12.6605]
[1725675213374,4.0043,124.9,124.86,4.0053]
[1725675228289,9.85,124.93,124.86,4.0053]
[1725675228290,4.0045,124.89,124.86,4.0053]
[1725675229294,4.0045,124.89,124.86,13.8553]
[1725675240095,12.4622,124.94,124.87,9.85]
[1725675240501,29.38411097,124.94,124.87,9.85]
[1725675240702,4.004,124.91,124.87,4.005]
[1725675240998,4.004,124.91,124.87,13.855]
[1725675246398,4.0036,124.92,124.88,4.0046]
[1725675246599,1.3079,124.94,124.89,9.85]
[1725675247206,4.0034,124.93,124.89,13.8544]
[1725675250602,4.0029,124.94,124.9,13.8539]
[1725675252008,4.0029,124.94,124.91,4.0038]
[1725675259014,149.64236841,124.95,124.91,4.0038]
[1725675260315,4.003,124.94,124.91,4.0038]
[1725675260613,4.003,124.94,124.9,13.854]
[1725675263311,4.003,124.94,124.9,4.004]
[1725675263510,149.64236841,124.95,124.89,13.8542]
[1725675263511,4.0032,124.93,124.89,13.8542]
[1725675263815,149.64236841,124.95,124.89,9.85]
[1725675264013,4.0035,124.93,124.89,13.8544]
[1725675265313,4.0036,124.92,124.89,13.8544]
[1725675275420,4.0036,124.92,124.88,4.0047]
[1725675275721,9.85,124.94,124.88,9.85]
[1725675275924,11.2592,124.94,124.88,9.85]
[1725675276116,4.004,124.91,124.88,9.85]
[1725675282724,35.2992,124.94,124.87,9.85]
[1725675284133,4.0042,124.9,124.87,9.85]
[1725675289637,4.0042,124.9,124.88,9.85]
[1725675289833,4.004,124.91,124.88,9.85]
[1725675297239,3.90867104,124.9,124.85,2.8105]
[1725675297443,9.85,124.92,124.85,12.6605]
[1725675297838,9.85,124.92,124.85,16.6663]
[1725675298434,4.0046,124.89,124.85,16.6663]
[1725675298743,4.0046,124.89,124.86,13.8554]
[1725675298945,4.0043,124.9,124.86,13.8554]
[1725675299341,4.0043,124.9,124.88,9.85]
[1725675300743,149.64236841,124.95,124.89,9.85]
[1725675300948,149.64236841,124.95,124.85,2.8105]
[1725675300949,149.64236841,124.95,124.91,9.85]
[1725675301441,4.0029,124.94,124.91,9.85]
[1725675301853,149.64236841,124.95,124.91,9.85]
[1725675302345,4.0032,124.93,124.91,9.85]
[1725675303138,4.0031,124.94,124.91,9.85]
[1725675304949,4.0033,124.93,124.91,9.85]
[1725675307854,4.0033,124.93,124.9,9.85]
[1725675311752,173.68236841,124.95,124.89,9.85]
[1725675312347,4.0036,124.92,124.89,9.85]
[1725675312551,149.64236841,124.95,124.9,9.85]
[1725675312752,149.64236841,124.95,124.91,9.85]
[1725675313155,4.0032,124.94,124.91,9.85]
[1725675318464,4.0029,124.94,124.91,9.85]
[1725675318664,4.0029,124.94,124.9,13.8539]
[1725675322666,9.85,124.94,124.88,1.3645]
[1725675322958,4.0037,124.92,124.88,5.3691]
[1725675323858,4.0039,124.91,124.88,5.3691]
[1725675326465,4.0037,124.92,124.89,9.85]
[1725675326759,149.64236841,124.95,124.91,9.85]
[1725675327062,149.64236841,124.95,124.93,9.85]
[1725675327266,153.64506841,124.95,124.93,9.85]
[1725675330464,4.02522441,124.97,124.93,9.85]
[1725675330662,9.85,125.01,124.95,9.85]
[1725675330863,1.15893627,125.0,124.95,9.85]
[1725675331362,4.0016,124.99,124.95,9.85]
[1725675331561,13.7924263,125.01,124.95,9.85]
[1725675331767,1.15886302,125.0,124.95,9.85]
[1725675332370,4.0016,124.98,124.95,9.85]
[1725675332965,4.002,124.97,124.93,15.2634]
[1725675339468,9.85,124.98,124.77,8.56170321]
[1725675339671,25.3796,125.0,124.9,9.85]
[1725675339672,33.89,124.97,124.9,9.85]
[1725675340073,9.85,124.96,124.9,9.85]
[1725675340475,4.0032,124.94,124.9,9.85]
[1725675342673,4.0033,124.93,124.9,9.85]
[1725675349078,4.0035,124.92,124.9,9.85]
[1725675349275,3.98830478,124.94,124.9,9.85]
[1725675349478,9.85,124.96,124.9,9.85]
[1725675349677,4.0033,124.93,124.9,9.85]
[1725675351784,4.02674801,124.94,124.85,4.0737]
[1725675351976,9.85,124.93,124.85,4.0737]
[1725675352178,13.86193202,124.93,124.87,9.85]
[1725675352376,4.0043,124.9,124.87,9.85]
[1725675353384,33.89,124.92,124.85,4.0737]
[1725675353677,24.04,124.91,124.85,2.6981]
[1725675353881,9.85,124.9,124.85,2.6981]
[1725675354076,4.0053,124.87,124.85,2.6981]
[1725675354480,4.0057,124.86,124.84,110.96246078]
[1725675354674,9.85,124.89,124.82,9.85]
[1725675354875,33.89,124.89,124.79,103.37273796]
[1725675355077,4.0056,124.86,124.82,9.85]
[1725675355787,13.80762301,124.9,124.83,13.8564]
[1725675355983,9.85,124.9,124.83,13.8564]
[1725675356376,13.7723765,124.9,124.83,13.8564]
[1725675356781,4.0047,124.89,124.84,4.0059]
[1725675356978,9.85,124.93,124.86,9.85]
[1725675357676,4.0041,124.91,124.86,9.85]
[1725675357882,7.96571261,124.91,124.86,9.85]
[1725675358684,7.96571261,124.91,124.86,13.8553]
[1725675359682,4.0042,124.9,124.86,13.8553]
[1725675359982,3.96161261,124.91,124.86,13.8553]
[1725675360189,4.0039,124.91,124.86,13.8553]
[1725675360389,8.09563576,124.91,124.86,13.8553]
[1725675361788,4.0042,124.9,124.86,13.8553]
[1725675361986,4.09173576,124.91,124.86,13.8553]
[1725675362187,4.004,124.91,124.86,13.8553]
[1725675362387,7.96634173,124.91,124.86,13.8553]
[1725675363987,3.96234173,124.91,124.86,13.8553]
[1725675364198,9.85,124.93,124.86,13.8553]
[1725675364793,13.76338128,124.93,124.85,2.6466]
[1725675364993,9.85,124.92,124.85,12.4966]
[1725675365383,4.0043,124.9,124.86,4.0053]
[1725675365887,33.89,124.92,124.85,12.4966]
[1725675366087,4.0047,124.89,124.85,1.3489]
[1725675366282,9.85,124.9,124.84,1.405]
[1725675366479,4.0052,124.87,124.84,1.405]
[1725675369398,4.0055,124.86,124.83,9.85]
[1725675369792,4.0059,124.85,124.83,9.85]
[1725675369997,3.90800785,124.84,124.8,1.3178]
[1725675370293,9.85,124.85,124.8,1.3178]
[1725675370493,4.0066,124.83,124.8,1.3178]
[1725675370794,4.0066,124.83,124.79,110.46033796]
[1725675371489,9.85,124.84,124.78,1.3038]
[1725675372794,4.0072,124.81,124.78,1.3038]
[1725675373589,9.85,124.82,124.73,1.3199]
[1725675373793,9.85,124.82,124.76,9.85]
[1725675374484,9.85,124.81,124.75,4.0088]
[1725675374887,174.96447542,124.85,124.62,109.56427969]
[1725675374888,9.85,124.78,124.62,109.56427969]
[1725675375190,9.85,124.78,124.71,9.85]
[1725675375395,9.85,124.77,124.67,1.3673]
[1725675375590,9.85,124.77,124.7,9.85]
[1725675375893,9.85,124.73,124.67,1.3673]
[1725675376486,13.81012776,124.73,124.67,1.3673]
[1725675376686,9.85,124.75,124.69,9.85]
[1725675376891,9.85,124.76,124.7,9.85]
[1725675377384,26.8406,124.79,124.71,9.85]
[1725675377385,9.85,124.77,124.71,9.85]
[1725675378087,1.2966,124.8,124.75,9.85]
[1725675378493,4.0072,124.81,124.75,9.85]
[1725675378999,4.0072,124.81,124.7,2.7626]
[1725675379000,11.277,124.83,124.7,2.7626]
[1725675379297,11.277,124.83,124.76,9.85]
[1725675379685,4.007,124.82,124.76,13.8585]
[1725675379893,4.007,124.82,124.76,28.6185]
[1725675381986,4.007,124.82,124.77,4.0083]
[1725675382386,4.007,124.82,124.77,5.3213]
[1725675389196,4.0065,124.83,124.77,1.313]
[1725675389499,4.0065,124.83,124.78,24.61]
[1725675391102,4.0065,124.83,124.78,28.6178]
[1725675391395,4.0067,124.82,124.78,28.6178]
[1725675391600,4.0067,124.82,124.77,3.9722]
[1725675391804,1.392,124.84,124.77,7.9804]
[1725675391993,4.0074,124.8,124.77,2.6584]
[1725675392194,4.0074,124.8,124.77,1.313]
[1725675392994,4.0071,124.81,124.77,1.313]
[1725675394294,4.0071,124.81,124.77,5.3212]
[1725675396497,4.0069,124.82,124.78,4.008]
[1725675397003,1.392,124.84,124.77,25.923]
[1725675397405,1.392,124.84,124.77,27.3468]
[1725675397602,4.0068,124.82,124.78,4.0078]
[1725675401908,4.0068,124.82,124.78,13.8478]
[1725675404410,149.61877542,124.85,124.79,9.84]
[1725675404705,145.52045552,124.85,124.81,9.84]
[1725675405811,149.52635552,124.85,124.81,13.8468]
[1725675409814,4.0062,124.84,124.81,9.84]
[1725675410010,4.0062,124.84,124.8,4.0073]
[1725675411908,4.0064,124.83,124.8,4.0073]
[1725675413719,4.0064,124.83,124.79,13.8475]
[1725675414115,4.0064,124.83,124.79,9.84]
[1725675415214,4.0064,124.83,124.8,4.0073]
[1725675420423,9.84,124.83,124.78,9.84]
[1725675420624,9.84,124.83,124.77,11.153]
[1725675420823,4.0072,124.81,124.77,15.1611]
[1725675422121,4.0072,124.81,124.78,4.0078]
[1725675422328,2.7285,124.84,124.78,13.8478]
[1725675423122,4.0069,124.82,124.78,13.8478]
[1725675423522,2.7285,124.84,124.79,4.0076]
[1725675423830,155.36045552,124.85,124.79,13.8476]
[1725675423831,4.0066,124.83,124.79,13.8476]
[1725675425127,4.0067,124.82,124.79,13.8476]
[1725675426721,4.0065,124.83,124.8,4.0074]
[1725675427528,4.0065,124.83,124.79,13.8475]
[1725675429031,4.0065,124.83,124.8,4.0073]
[1725675429928,1.4077,124.87,124.81,13.847]
[1725675430529,4.0059,124.85,124.81,13.847]
[1725675436134,4.0064,124.84,124.8,4.0071]
[1725675437728,4.0064,124.83,124.8,4.0071]
[1725675441736,4.0067,124.82,124.79,13.8475]
[1725675445436,41.40275025,124.89,124.8,9.84]
[1725675445628,9.84,124.9,124.84,9.84]
[1725675445827,4.0053,124.87,124.84,9.84]
[1725675446028,9.84,124.9,124.84,9.84]
[1725675446838,12.5999,124.91,124.85,9.84]
[1725675447135,2.7599,124.91,124.85,9.84]
[1725675447541,3.91338128,124.93,124.86,9.84]
[1725675447843,11.2356,124.94,124.87,4.0051]
[1725675448040,1.15958856,124.93,124.87,4.0051]
[1725675448230,4.0039,124.91,124.86,13.8453]
[1725675449344,4.0042,124.9,124.86,13.8453]
[1725675457045,9.84,124.92,124.86,9.84]
[1725675457345,9.84,124.91,124.85,13.8455]
[1725675457744,4.0046,124.89,124.85,13.8455]
[1725675458345,9.84,124.88,124.82,1.3606]
[1725675458544,9.84,124.87,124.82,1.3606]
[1725675458745,4.0059,124.85,124.82,1.3606]
[1725675458940,4.04558627,124.86,124.82,1.3606]
[1725675459835,8.05128627,124.86,124.82,1.3606]
[1725675462153,4.0058,124.85,124.82,1.3606]
[1725675463550,4.0058,124.85,124.82,5.3673]
[1725675468259,24.04,124.91,124.82,5.3673]
[1725675468260,165.33590156,124.92,124.84,9.84]
[1725675468454,1.15984955,124.91,124.86,9.84]
[1725675468652,4.0047,124.89,124.86,9.84]
[1725675470659,4.0047,124.89,124.86,13.8454]
[1725675473158,165.33590156,124.92,124.86,13.8454]
[1725675473365,4.0042,124.9,124.86,13.8454]
[1725675473567,155.49590156,124.92,124.87,9.84]
[1725675473864,4.0042,124.9,124.87,9.84]
[1725675474866,4.004,124.91,124.87,9.84]
[1725675476164,4.004,124.91,124.87,13.845]
[1725675479167,159.49950156,124.92,124.88,4.0048]
[1725675480159,4.0039,124.91,124.87,13.845]
[1725675480362,165.33590156,124.92,124.86,9.84]
[1725675480868,9.84,124.91,124.86,9.84]
[1725675481668,4.0044,124.9,124.86,13.8454]
[1725675482669,155.49590156,124.92,124.87,9.84]
[1725675483171,4.004,124.91,124.87,13.845]
[1725675484867,4.0043,124.9,124.87,9.84]
[1725675485071,4.0043,124.9,124.86,13.8452]
[1725675485765,4.0047,124.89,124.86,9.84]
[1725675487265,4.0044,124.9,124.86,13.8454]
[1725675502381,155.49590156,124.92,124.86,9.84]
[1725675503074,165.33590156,124.92,124.86,9.84]
[1725675503781,4.0047,124.89,124.86,9.84]
[1725675503978,155.49590156,124.92,124.86,9.84]
[1725675504383,155.49590156,124.92,124.85,4.0056]
[1725675504683,155.49590156,124.92,124.86,9.84]
[1725675504885,4.0044,124.9,124.86,9.84]
[1725675505182,4.0044,124.9,124.86,13.8451]
[1725675505584,4.0045,124.89,124.86,9.84]
[1725675507786,9.84,124.91,124.82,1.3606]
[1725675507981,9.84,124.9,124.83,9.84]
[1725675508581,4.0051,124.87,124.83,13.8462]
[1725675511180,4.0045,124.89,124.86,4.0054]
[1725675511377,165.33590156,124.92,124.85,9.84]
[1725675511578,1.15975068,124.91,124.85,9.84]
[1725675511988,1.15975068,124.91,124.85,13.8457]
[1725675512191,1.15975068,124.91,124.85,9.84]
[1725675512387,155.49590156,124.92,124.86,9.84]
[1725675513385,4.0044,124.9,124.86,9.84]
[1725675514090,4.0044,124.9,124.86,13.8454]
[1725675514492,4.004,124.91,124.87,4.0051]
[1725675514683,4.004,124.91,124.88,9.84]
[1725675516789,4.0037,124.92,124.89,9.84]
[1725675517097,11.1424,124.96,124.91,9.84]
[1725675517391,4.0031,124.94,124.91,9.84]
[1725675517600,4.02122859,124.95,124.91,9.84]
[1725675517793,1.3884,124.97,124.91,9.84]
[1725675517994,4.0027,124.95,124.91,9.84]
[1725675518195,4.0027,124.95,124.92,9.84]
[1725675519694,7.92133637,124.96,124.92,9.84]
[1725675519898,4.0024,124.96,124.92,13.8435]
[1725675520397,4.0021,124.97,124.92,13.8435]
[1725675520604,4.0021,124.97,124.93,9.84]
[1725675521893,35.86755931,125.0,124.93,13.8432]
[1725675522094,4.0018,124.98,124.93,9.84]
[1725675522298,39.70434842,125.0,124.93,9.84]
[1725675522487,1.15893183,124.99,124.93,9.84]
[1725675522691,4.0021,124.97,124.93,13.8431]
[1725675522891,32.21124908,125.0,124.93,9.84]
[1725675522892,39.70434842,125.0,124.93,9.84]
[1725675523094,10.999024,124.99,124.92,9.84]
[1725675523292,4.0025,124.96,124.92,9.84]
[1725675523899,4.0016,124.98,124.94,9.84]
[1725675524997,4.0019,124.97,124.94,9.84]
[1725675525302,5.42364843,125.0,124.94,13.8428]
[1725675525499,4.0015,124.99,124.94,9.84]
[1725675526002,4.0015,124.99,124.96,9.84]
[1725675526204,4.0016,124.98,124.96,9.84]
[1725675526598,4.0016,124.98,124.94,13.8426]
[1725675526799,4.04924843,125.0,124.94,9.84]
[1725675527106,9.84,125.01,124.94,9.84]
[1725675527305,1.15885285,125.0,124.94,9.84]
[1725675527500,4.0018,124.98,124.94,9.84]
[1725675529803,4.0019,124.97,124.93,4.003]
[1725675529998,18.32982637,125.02,124.94,4.0028]
[1725675530202,9.84,125.0,124.94,4.0028]
[1725675530405,4.0018,124.98,124.94,4.0028]
[1725675532401,4.0019,124.97,124.93,13.8431]
[1725675532600,13.85144809,124.99,124.93,9.84]
[1725675532806,9.84,124.99,124.93,9.84]
[1725675533006,4.0023,124.96,124.93,9.84]
[1725675535409,4.002,124.97,124.93,13.8432]
[1725675537207,4.0018,124.98,124.95,9.84]
[1725675537410,4.0018,124.98,124.94,4.0028]
[1725675537613,3.99055139,125.0,124.95,9.84]
[1725675537817,9.84,125.01,124.94,9.84]
[1725675538009,1.15881596,125.0,124.94,9.84]
[1725675538305,5.10901751,125.0,124.94,9.84]
[1725675538511,4.0019,124.97,124.94,9.84]
[1725675538811,3.93058664,124.97,124.93,9.84]
[1725675539009,9.84,124.99,124.93,9.84]
[1725675539512,13.79940854,124.99,124.93,9.84]
[1725675540011,4.0022,124.97,124.93,9.84]
[1725675540609,4.0022,124.96,124.93,9.84]
[1725675541108,13.79940854,124.99,124.9,4.0279]
[1725675541314,1.15901171,124.98,124.92,9.84]
[1725675541509,4.0025,124.96,124.92,9.84]
[1725675541716,4.0025,124.96,124.92,13.8435]
[1725675546509,4.0025,124.96,124.9,4.0279]
[1725675546510,9.84,124.96,124.9,13.8679]
[1725675546713,3.95683956,124.95,124.9,13.8679]
[1725675547013,4.0034,124.93,124.9,13.8679]
[1725675547813,3.95683956,124.95,124.9,12.504]
[1725675548016,9.84,124.96,124.9,12.504]
[1725675548613,13.84624635,124.96,124.9,12.504]
[1725675549408,4.0035,124.93,124.9,12.504]
[1725675549819,4.0035,124.93,124.9,2.664]
[1725675550014,4.0035,124.93,124.9,12.504]
[1725675551018,4.0035,124.92,124.9,12.504]
[1725675552323,4.0032,124.93,124.9,12.504]
[1725675553921,4.003,124.94,124.9,12.504]
[1725675555120,2.6942,124.98,124.93,9.84]
[1725675555622,4.0024,124.96,124.93,9.84]
[1725675556620,3.93296132,124.97,124.93,9.84]
[1725675557319,7.93516132,124.97,124.93,13.8429]
[1725675557723,3.93296132,124.97,124.93,9.84]
[1725675558621,1.394,124.98,124.93,9.84]
[1725675559221,4.0021,124.97,124.93,9.84]
[1725675559422,5.44845856,124.98,124.93,9.84]
[1725675559626,4.05445856,124.98,124.93,9.84]
[1725675559817,9.84,124.99,124.93,9.84]
[1725675559818,4.0022,124.97,124.93,13.8432]
[1725675560024,7.92531413,124.97,124.93,13.8432]
[1725675560229,3.92311413,124.97,124.93,9.84]
[1725675560528,4.0022,124.96,124.93,9.84]
[1725675562019,8.10367287,124.97,124.93,13.843]
[1725675562222,4.0019,124.97,124.93,13.843]
[1725675562829,8.04041469,124.97,124.93,13.843]
[1725675566837,4.0023,124.96,124.93,9.84]
[1725675567942,4.0023,124.96,124.92,4.0034]
[1725675568944,4.0028,124.95,124.91,13.8437]
[1725675570345,4.0028,124.95,124.93,9.84]
[1725675571547,4.0025,124.96,124.93,13.8431]
[1725675574743,8.00057722,124.97,124.93,13.8431]
[1725675574947,4.0021,124.97,124.93,13.8431]
[1725675575650,7.91080792,124.97,124.93,13.8431]
[1725675587463,4.0023,124.96,124.93,9.84]
[1725675587960,4.0031,124.94,124.9,6.668]
[1725675588162,3.90870792,124.97,124.9,12.504]
[1725675588353,9.84,124.98,124.9,12.504]
[1725675588557,51.22246936,124.98,124.9,12.504]
[1725675588769,9.84,124.98,124.9,12.504]
[1725675588958,4.0027,124.95,124.9,16.5079]
[1725675590752,4.0029,124.94,124.9,16.5079]
[1725675592760,4.0029,124.94,124.9,6.6679]
[1725675592967,4.0029,124.94,124.9,16.5079]
[1725675593867,9.84,124.94,124.88,1.4129]
[1725675594870,4.0037,124.92,124.88,1.4129]
[1725675598074,4.0038,124.91,124.88,1.4129]
[1725675599766,4.0038,124.91,124.88,5.4176]
[1725675600368,4.0038,124.91,124.89,9.84]
[1725675602673,4.04814664,124.91,124.86,9.84]
[1725675602974,9.84,124.92,124.86,9.84]
[1725675603970,4.07338246,124.91,124.86,9.84]
[1725675605069,24.44448546,124.95,124.87,9.84]
[1725675605271,10.99951608,124.94,124.88,9.84]
[1725675605572,4.0037,124.92,124.88,13.8448]
[1725675606578,4.0037,124.92,124.88,9.84]
[1725675606876,12.6391,124.96,124.9,9.84]
[1725675607872,4.0034,124.93,124.9,9.84]
[1725675610779,42.81773829,124.97,124.9,9.84]
[1725675610976,1.427,124.97,124.91,9.84]
[1725675611681,4.01016842,124.98,124.93,9.84]
[1725675611873,9.84,125.0,124.93,9.84]
[1725675612077,1.15884473,124.99,124.93,9.84]
[1725675612280,4.0021,124.97,124.93,13.8432]
[1725675612674,9.84,124.98,124.92,1.3655]
[1725675613275,4.0023,124.96,124.92,5.3689]
[1725675615187,4.07010332,125.0,124.94,9.84]
[1725675615387,4.0025,125.01,124.94,9.84]
[1725675615583,1.15884648,125.0,124.94,9.84]
[1725675615784,3.9155927,124.99,124.94,9.84]
[1725675615979,4.0018,124.98,124.94,13.8429]
[1725675616879,4.0013,124.99,124.95,4.0025]
[1725675617382,4.0013,124.99,124.95,9.84]
[1725675619492,4.0013,124.99,124.95,13.8425]
[1725675620688,7.98676415,125.0,124.95,13.8425]
[1725675620888,4.0011,125.0,124.95,13.8425]
[1725675621286,4.0013,124.99,124.95,13.8425]
[1725675621893,4.0013,124.99,124.95,4.0025]
[1725675622093,4.0013,124.99,124.95,13.8425]
[1725675622699,4.0016,124.98,124.94,13.8427]
[1725675625997,4.0016,124.98,124.95,9.84]
[1725675626202,4.0014,124.99,124.95,13.8425]
[1725675629299,41.3795815,125.03,124.96,9.84]
[1725675629507,1.15862664,125.02,124.96,9.84]
[1725675630009,4.0008,125.01,124.96,13.842]
[1725675630204,4.0008,125.01,124.98,9.84]
[1725675630603,2.6578,125.04,124.98,9.84]